bitfinex/quotes_BTCUSD_20250604
["timestamp","ask_amount","ask_price","bid_price","bid_amount"]
[1749003306447,1.06846207,105760.0,105750.0,1.0214343]
[1749003306676,1.06846207,105760.0,105750.0,0.7166143]
[1749003306893,1.06846207,105760.0,105750.0,0.9907343]
[1749003307321,0.71442463,105760.0,105750.0,0.9907343]
[1749003309162,0.71442463,105760.0,105750.0,1.0226343]
[1749003310047,0.02062265,105760.0,105750.0,1.0226343]
[1749003311231,0.02062265,105760.0,105750.0,0.6447543]
[1749003311491,0.37442463,105760.0,105750.0,1.0225143]
[1749003325095,0.37442463,105760.0,105750.0,1.0063143]
[1749003325568,0.37442463,105760.0,105750.0,0.9906143]
[1749003326205,0.37442463,105760.0,105750.0,1.0058143]
[1749003327053,0.37442463,105760.0,105750.0,0.6280543]
[1749003327260,0.37442463,105760.0,105750.0,1.0057743]
[1749003327961,0.37442463,105760.0,105750.0,0.7015343]
[1749003328152,0.37442463,105760.0,105750.0,0.9905743]
[1749003328153,0.39062463,105760.0,105750.0,0.9905743]
[1749003328795,0.40582463,105760.0,105750.0,0.9905743]
[1749003329448,1.09963285,105760.0,105750.0,0.6128543]
[1749003329676,1.09963285,105760.0,105750.0,0.9905743]
[1749003329888,1.11734796,105760.0,105750.0,0.9905743]
[1749003330101,1.09963285,105760.0,105750.0,0.9905743]
[1749003330316,1.11734829,105760.0,105750.0,0.9905743]
[1749003330526,1.09963285,105760.0,105750.0,0.9905743]
[1749003331174,0.75963285,105760.0,105750.0,0.9905743]
[1749003331384,0.77734804,105760.0,105750.0,0.9905743]
[1749003331850,0.75963285,105760.0,105750.0,0.9905743]
[1749003332297,0.77734812,105760.0,105750.0,0.9905743]
[1749003332513,0.75963285,105760.0,105750.0,0.9905743]
[1749003332720,0.77734812,105760.0,105750.0,0.9905743]
[1749003332929,0.75963285,105760.0,105750.0,0.9905743]
[1749003333364,0.77734806,105760.0,105750.0,0.9905743]
[1749003333579,0.75963285,105760.0,105750.0,0.9905743]
[1749003334006,0.77734808,105760.0,105750.0,0.9905743]
[1749003334220,0.77734812,105760.0,105750.0,0.9905743]
[1749003334430,0.75963285,105760.0,105750.0,0.9905743]
[1749003335092,0.77734818,105760.0,105750.0,0.9905743]
[1749003335308,0.77734813,105760.0,105750.0,0.9905743]
[1749003335519,0.77734814,105760.0,105750.0,0.9905743]
[1749003335779,0.75963285,105760.0,105750.0,0.9905743]
[1749003336417,0.77734824,105760.0,105750.0,0.9905743]
[1749003336840,0.75963285,105760.0,105750.0,0.9905743]
[1749003337733,0.77734819,105760.0,105750.0,0.9905743]
[1749003338157,0.77734826,105760.0,105750.0,0.9905743]
[1749003338392,0.74191564,105760.0,105750.0,0.9905743]
[1749003338841,0.75963105,105760.0,105750.0,0.9905743]
[1749003339063,0.74191564,105760.0,105750.0,0.9905743]
[1749003339270,0.75963111,105760.0,105750.0,0.7015343]
[1749003339485,0.74191564,105760.0,105750.0,0.9905743]
[1749003339937,0.75963131,105760.0,105750.0,0.9905743]
[1749003340159,0.74191564,105760.0,105750.0,0.9905743]
[1749003340608,0.74191564,105760.0,105750.0,0.7015343]
[1749003340820,0.74191564,105760.0,105750.0,0.9905743]
[1749003341997,0.7596313,105760.0,105750.0,0.9905743]
[1749003342234,0.74191564,105760.0,105750.0,0.9905743]
[1749003343756,0.741983,105760.0,105750.0,0.9905743]
[1749003345064,0.75963115,105760.0,105750.0,0.71834694]
[1749003345066,0.74191564,105760.0,105750.0,0.71834694]
[1749003345316,0.74191564,105760.0,105750.0,0.99046694]
[1749003346422,0.75963113,105760.0,105750.0,0.99046694]
[1749003346716,0.74191564,105760.0,105750.0,0.99046694]
[1749003348076,0.75963116,105760.0,105750.0,0.99046694]
[1749003348286,0.74191564,105760.0,105750.0,0.70142694]
[1749003348512,1.51440961,105760.0,105750.0,0.89468]
[1749003350570,1.53212601,105760.0,105750.0,0.89468]
[1749003350785,1.51440961,105760.0,105750.0,0.89468]
[1749003350999,1.53212601,105760.0,105750.0,0.517]
[1749003351212,1.51440961,105760.0,105750.0,0.60564]
[1749003351461,1.51440961,105760.0,105750.0,0.89464]
[1749003352555,1.43572074,105760.0,105750.0,0.89464]
[1749003353225,1.45343803,105760.0,105750.0,0.89464]
[1749003353848,1.43572074,105760.0,105750.0,0.89464]
[1749003354916,1.45343803,105760.0,105750.0,0.89464]
[1749003355135,1.43572074,105760.0,105750.0,0.89464]
[1749003355360,1.45659153,105760.0,105750.0,0.89464]
[1749003355799,1.47430874,105760.0,105750.0,0.89464]
[1749003356016,1.45659153,105760.0,105750.0,0.89464]
[1749003356230,1.43572074,105760.0,105750.0,0.89464]
[1749003356909,1.45343793,105760.0,105750.0,0.89464]
[1749003357119,1.43572074,105760.0,105750.0,0.89464]
[1749003357575,1.45343818,105760.0,105750.0,0.89464]
[1749003357814,1.43572074,105760.0,105750.0,0.89464]
[1749003358565,1.45343812,105760.0,105750.0,0.89464]
[1749003358800,1.52823196,105760.0,105750.0,0.89464]
[1749003359538,1.54594933,105760.0,105750.0,0.89464]
[1749003359775,1.54594923,105760.0,105750.0,0.89464]
[1749003360008,1.52823196,105760.0,105750.0,0.89464]
[1749003360137,1.5459492,105760.0,105750.0,0.89464]
[1749003360354,1.52823196,105760.0,105750.0,0.89464]
[1749003360764,1.54594949,105760.0,105750.0,0.89464]
[1749003360968,1.52823196,105760.0,105750.0,0.89464]
[1749003361167,1.54594949,105760.0,105750.0,0.89464]
[1749003361374,1.52823196,105760.0,105750.0,0.89464]
[1749003363398,1.54594945,105760.0,105750.0,0.89464]
[1749003363619,1.43572074,105760.0,105750.0,0.89464]
[1749003363837,1.05051564,105760.0,105750.0,0.9904943]
[1749003364717,1.08261564,105760.0,105750.0,0.9904943]
[1749003364931,1.08383187,105760.0,105750.0,0.9904943]
[1749003365118,1.06823178,105760.0,105750.0,0.9904943]
[1749003365332,1.05051564,105760.0,105750.0,0.9904943]
[1749003367806,0.34290544,105760.0,105750.0,0.9904943]
[1749003368044,0.02062109,105760.0,105750.0,1.0228943]
[1749003368310,0.35671054,105760.0,105750.0,1.0228943]
[1749003369414,0.35664212,105760.0,105750.0,1.0228943]
[1749003369660,0.00290544,105760.0,105750.0,1.0228943]
[1749003374041,0.00290544,105760.0,105750.0,1.03241871]
[1749003385076,0.00290544,105760.0,105750.0,2.22703624]
[1749003385297,0.00290544,105760.0,105750.0,2.22699624]
[1749003385513,0.00290544,105760.0,105750.0,2.25552856]
[1749003385948,0.01771384,105770.0,105760.0,0.01454085]
[1749003386160,0.01771384,105770.0,105760.0,0.15858852]
[1749003387757,0.01771384,105770.0,105760.0,0.15958852]
[1749003388406,0.01771384,105770.0,105760.0,0.16058852]
[1749003389506,0.01771384,105770.0,105760.0,0.64708852]
[1749003389734,0.01771384,105770.0,105760.0,0.63254767]
[1749003389963,0.37145052,105770.0,105760.0,0.5843543]
[1749003391089,0.38785052,105770.0,105760.0,0.8731943]
[1749003391306,0.37145052,105770.0,105760.0,0.8731943]
[1749003394225,0.38675052,105770.0,105760.0,0.8731943]
[1749003395097,0.38675052,105770.0,105760.0,0.3866943]
[1749003395307,0.38675052,105770.0,105760.0,0.9921743]
[1749003397353,0.37145052,105770.0,105760.0,0.9921743]
[1749003402206,0.01771384,105770.0,105760.0,0.9921743]
[1749003406574,0.37145052,105770.0,105760.0,0.9921743]
[1749003407732,0.01771384,105770.0,105760.0,0.9921743]
[1749003407940,0.35771384,105770.0,105760.0,0.9921743]
[1749003410102,0.74305052,105770.0,105760.0,0.3699343]
[1749003410318,0.83259998,105770.0,105760.0,0.7033343]
[1749003410533,0.84228581,105770.0,105760.0,0.9921343]
[1749003410765,0.39899967,105770.0,105760.0,0.9921343]
[1749003410970,0.39899967,105770.0,105760.0,0.9911343]
[1749003411186,0.75273635,105770.0,105760.0,0.9901343]
[1749003411820,0.75273635,105770.0,105760.0,0.9901743]
[1749003412238,0.75373635,105770.0,105760.0,0.9901743]
[1749003412863,0.77144936,105770.0,105760.0,0.9901743]
[1749003413074,0.75373635,105770.0,105760.0,0.9901743]
[1749003413298,0.75373635,105770.0,105760.0,0.6127743]
[1749003413507,0.75373635,105770.0,105760.0,0.9901343]
[1749003413926,0.7714498,105770.0,105760.0,0.9901343]
[1749003414143,0.75373635,105770.0,105760.0,0.9901343]
[1749003414829,0.77145018,105770.0,105760.0,0.9901343]
[1749003415050,0.75373635,105770.0,105760.0,0.9901343]
[1749003415464,0.77145018,105770.0,105760.0,0.9901343]
[1749003415677,0.75373635,105770.0,105760.0,0.9901343]
[1749003416954,0.84624757,105770.0,105760.0,0.7013343]
[1749003417213,0.86396141,105770.0,105760.0,0.9901343]
[1749003417422,0.84624757,105770.0,105760.0,0.6127743]
[1749003417627,0.75373635,105770.0,105760.0,0.9901343]
[1749003417836,0.77145024,105770.0,105760.0,0.9901343]
[1749003418671,0.75373635,105770.0,105760.0,0.9901343]
[1749003420854,0.39999967,105770.0,105760.0,0.9901343]
[1749003421107,0.77145006,105770.0,105760.0,0.9901343]
[1749003421321,0.77144994,105770.0,105760.0,0.9901343]
[1749003421535,0.77144999,105770.0,105760.0,0.9901343]
[1749003421750,0.77144998,105770.0,105760.0,0.9901343]
[1749003422184,0.75373635,105770.0,105760.0,0.9901343]
[1749003422646,0.77144998,105770.0,105760.0,0.9901343]
[1749003422855,0.75373635,105770.0,105760.0,0.9901343]
[1749003423290,0.77144998,105770.0,105760.0,0.9901343]
[1749003423507,0.75373635,105770.0,105760.0,0.9901343]
[1749003423935,0.75373635,105770.0,105760.0,0.7013343]
[1749003424146,0.75373635,105770.0,105760.0,0.9901343]
[1749003425447,0.84624757,105770.0,105760.0,0.9901343]
[1749003425881,0.86396178,105770.0,105760.0,0.9901343]
[1749003426087,0.84624757,105770.0,105760.0,0.9901343]
[1749003426972,0.84624757,105770.0,105760.0,0.51692]
[1749003427187,0.84624757,105770.0,105760.0,0.89428]
[1749003428785,0.7714524,105770.0,105760.0,0.89428]
[1749003428993,0.75373635,105770.0,105760.0,0.89428]
[1749003429210,0.77145207,105770.0,105760.0,0.89428]
[1749003429427,0.75373635,105770.0,105760.0,0.89428]
[1749003430319,0.77145201,105770.0,105760.0,0.89428]
[1749003430543,0.77145201,105770.0,105760.0,0.51692]
[1749003430544,0.86396323,105770.0,105760.0,0.51692]
[1749003430770,0.84624757,105770.0,105760.0,0.89428]
[1749003430985,0.86396361,105770.0,105760.0,0.89428]
[1749003431197,0.84624757,105770.0,105760.0,0.89428]
[1749003431834,0.85189113,105770.0,105760.0,0.89428]
[1749003432280,0.84724757,105770.0,105760.0,0.89428]
[1749003432534,1.25762784,105770.0,105760.0,0.60548]
[1749003432756,1.25098425,105770.0,105760.0,0.89428]
[1749003432973,0.89724757,105770.0,105760.0,0.89428]
[1749003433187,0.91496437,105770.0,105760.0,0.89428]
[1749003433406,0.96256531,105770.0,105760.0,0.89428]
[1749003433626,0.89824757,105770.0,105760.0,0.89428]
[1749003434295,0.91596437,105770.0,105760.0,0.89428]
[1749003434717,0.89824757,105770.0,105760.0,0.89428]
[1749003435416,0.96356856,105770.0,105760.0,0.89428]
[1749003436037,0.98128536,105770.0,105760.0,0.89428]
[1749003436248,0.97021236,105770.0,105760.0,0.89428]
[1749003436503,0.96356856,105770.0,105760.0,0.89428]
[1749003436929,0.97021236,105770.0,105760.0,0.89428]
[1749003437139,0.96356856,105770.0,105760.0,0.89428]
[1749003437357,0.96356617,105770.0,105760.0,0.89428]
[1749003437791,0.90489137,105770.0,105760.0,0.89428]
[1749003438007,0.89824757,105770.0,105760.0,0.89428]
[1749003438213,0.90489137,105770.0,105760.0,0.89428]
[1749003438429,0.96356311,105770.0,105760.0,0.60548]
[1749003438648,0.96356311,105770.0,105760.0,0.89428]
[1749003439556,0.89824757,105770.0,105760.0,0.89428]
[1749003440468,1.2665251,105770.0,105760.0,0.89428]
[1749003440685,1.38183336,105770.0,105760.0,0.89428]
[1749003441110,1.38847742,105770.0,105760.0,0.89428]
[1749003441321,1.38846836,105770.0,105760.0,0.89428]
[1749003442028,1.3818243,105770.0,105760.0,0.89428]
[1749003442239,1.40618587,105770.0,105760.0,0.89428]
[1749003442668,1.3818243,105770.0,105760.0,0.89428]
[1749003443314,1.40618587,105770.0,105760.0,0.89428]
[1749003443525,1.3818243,105770.0,105760.0,0.89428]
[1749003443741,1.39954181,105770.0,105760.0,0.89428]
[1749003443956,1.38846836,105770.0,105760.0,0.89428]
[1749003444169,1.39954181,105770.0,105760.0,0.89428]
[1749003444405,1.3818243,105770.0,105760.0,0.89428]
[1749003444633,0.082,105760.0,105750.0,0.27216]
[1749003444853,0.082,105760.0,105750.0,0.62224]
[1749003444854,1.18998458,105760.0,105750.0,0.62224]
[1749003445293,1.22178458,105760.0,105750.0,0.8944]
[1749003445529,1.23950316,105760.0,105750.0,0.8944]
[1749003445806,1.23950295,105760.0,105750.0,0.51708]
[1749003446023,1.1469917,105760.0,105750.0,0.8944]
[1749003446233,1.13027336,105760.0,105750.0,0.8944]
[1749003446441,1.13127336,105760.0,105750.0,0.8944]
[1749003446874,1.13127336,105760.0,105750.0,0.6056]
[1749003447100,1.13791773,105760.0,105750.0,0.8944]
[1749003447311,1.22378458,105760.0,105750.0,0.8944]
[1749003447745,1.26268834,105760.0,105750.0,0.8944]
[1749003447960,1.23832543,105760.0,105750.0,0.8944]
[1749003448207,1.28832543,105760.0,105750.0,0.6056]
[1749003448617,1.28832543,105760.0,105720.0,0.0317]
[1749003448618,1.32181223,105760.0,105720.0,0.0317]
[1749003448825,0.0151,105740.0,105730.0,0.0958543]
[1749003449922,0.0151,105740.0,105730.0,0.3846543]
[1749003450137,0.70888469,105740.0,105730.0,0.3846543]
[1749003450357,0.72660405,105740.0,105730.0,0.3856543]
[1749003450578,0.70888469,105740.0,105730.0,0.3866543]
[1749003450816,0.72660405,105740.0,105730.0,0.3866543]
[1749003451043,0.70888469,105740.0,105730.0,0.3846543]
[1749003451269,0.72660405,105740.0,105730.0,0.3846543]
[1749003451477,0.70888469,105740.0,105730.0,0.3846543]
[1749003451695,0.72660405,105740.0,105730.0,0.3846543]
[1749003451911,0.70888469,105740.0,105730.0,0.3846543]
[1749003452393,0.70888469,105740.0,105730.0,0.3856543]
[1749003452523,0.7266041,105740.0,105730.0,0.3856543]
[1749003452740,0.70888469,105740.0,105730.0,0.3856543]
[1749003453791,0.72660435,105740.0,105730.0,0.3856543]
[1749003454000,0.70888469,105740.0,105730.0,0.3856543]
[1749003454776,0.72438469,105740.0,105730.0,0.001]
[1749003454995,0.79784095,105740.0,105730.0,0.001]
[1749003455200,0.80850329,105740.0,105730.0,0.2898]
[1749003455402,0.80850329,105740.0,105730.0,0.89548]
[1749003456478,0.8262233,105740.0,105730.0,0.89548]
[1749003456690,0.80850329,105740.0,105730.0,0.89548]
[1749003457713,0.8262233,105740.0,105730.0,0.89548]
[1749003457947,0.75276669,105740.0,105730.0,0.89548]
[1749003458134,0.7704867,105740.0,105730.0,0.89548]
[1749003458367,0.75276669,105740.0,105730.0,0.89548]
[1749003458589,0.7704867,105740.0,105730.0,0.89548]
[1749003459020,0.75276669,105740.0,105730.0,0.89548]
[1749003459231,0.84527791,105740.0,105730.0,0.89548]
[1749003460154,0.86299792,105740.0,105730.0,0.60668]
[1749003460377,0.84527791,105740.0,105730.0,0.60668]
[1749003460590,0.84527791,105740.0,105730.0,0.89548]
[1749003460810,0.86299884,105740.0,105730.0,0.89548]
[1749003461096,0.86964424,105740.0,105730.0,0.89548]
[1749003461534,0.86964464,105740.0,105730.0,0.89548]
[1749003461746,0.86299912,105740.0,105730.0,0.89548]
[1749003461965,0.86299899,105740.0,105730.0,0.89548]
[1749003462191,0.84527791,105740.0,105730.0,0.89548]
[1749003462434,0.85192328,105740.0,105730.0,0.89548]
[1749003462643,0.84527791,105740.0,105730.0,0.89548]
[1749003462859,0.85192329,105740.0,105730.0,0.60668]
[1749003463078,0.85192336,105740.0,105730.0,0.89548]
[1749003463298,0.86299912,105740.0,105730.0,0.89548]
[1749003463515,0.8519234,105740.0,105730.0,0.89548]
[1749003463770,0.84527791,105740.0,105730.0,0.89548]
[1749003464857,0.85192341,105740.0,105730.0,0.89548]
[1749003465068,0.86299924,105740.0,105730.0,0.89548]
[1749003465280,0.84527791,105740.0,105730.0,0.89548]
[1749003466197,0.85192341,105740.0,105730.0,0.89548]
[1749003466436,0.84527791,105740.0,105730.0,0.89548]
[1749003466662,0.75276669,105740.0,105730.0,0.89548]
[1749003466922,0.75276669,105740.0,105730.0,0.51812]
[1749003466923,1.12104422,105740.0,105730.0,0.51812]
[1749003467129,1.17104422,105740.0,105730.0,0.89544]
[1749003467339,1.26355544,105740.0,105730.0,0.89544]
[1749003467764,1.28127756,105740.0,105730.0,0.89544]
[1749003467975,1.26355544,105740.0,105730.0,0.89544]
[1749003468399,0.92754088,105740.0,105730.0,0.89544]
[1749003468611,0.90981876,105740.0,105730.0,0.89544]
[1749003469675,0.92754088,105740.0,105730.0,0.89544]
[1749003469893,0.90981876,105740.0,105730.0,0.89544]
[1749003470328,1.26355544,105740.0,105730.0,0.60664]
[1749003470544,1.33127739,105740.0,105730.0,0.60664]
[1749003470764,1.40940974,105740.0,105730.0,0.60664]
[1749003470976,1.47470219,105740.0,105730.0,0.89544]
[1749003471217,1.49242474,105740.0,105730.0,0.60664]
[1749003471448,1.42470219,105740.0,105730.0,0.89444]
[1749003471665,0.4209,105730.0,105700.0,0.04667781]
[1749003471881,0.4209,105730.0,105710.0,0.08852]
[1749003471882,0.35373668,105720.0,105710.0,0.08852]
[1749003472316,0.38212368,105720.0,105710.0,0.08852]
[1749003472967,0.38212368,105720.0,105710.0,0.37732]
[1749003473203,0.75136036,105720.0,105710.0,0.37932]
[1749003473443,0.76646036,105720.0,105710.0,0.37932]
[1749003473725,0.85897158,105720.0,105710.0,0.37932]
[1749003473911,0.87669497,105720.0,105710.0,0.37932]
[1749003474135,0.87669497,105720.0,105710.0,0.09052]
[1749003474379,1.24897158,105720.0,105710.0,0.09052]
[1749003474596,1.24897158,105720.0,105710.0,0.37932]
[1749003474818,1.26451243,105720.0,105710.0,0.0934742]
[1749003475039,1.26451243,105720.0,105710.0,0.37732]
[1749003475286,1.28223777,105720.0,105710.0,0.89751422]
[1749003475541,1.28223777,105720.0,105710.0,0.60576]
[1749003475542,1.41236673,105720.0,105710.0,0.60576]
[1749003475775,1.41236673,105720.0,105710.0,0.89751433]
[1749003475776,1.41136673,105720.0,105710.0,0.89751433]
[1749003476030,1.47866781,105720.0,105710.0,0.89456]
[1749003476517,1.44240211,105720.0,105710.0,0.89456]
[1749003476752,1.44240211,105720.0,105710.0,0.89751438]
[1749003476992,1.52542298,105720.0,105710.0,0.52019438]
[1749003477240,1.79613879,105720.0,105710.0,0.60871438]
[1749003477484,1.79613879,105720.0,105710.0,0.89456]
[1749003477715,1.87913726,105720.0,105710.0,0.60576]
[1749003477945,1.82913749,105720.0,105710.0,0.60576]
[1749003478174,1.86141083,105720.0,105710.0,0.8946]
[1749003478423,1.81141083,105720.0,105710.0,0.8946]
[1749003478653,1.81141083,105720.0,105690.0,0.02]
[1749003478654,0.43534085,105700.0,105690.0,0.02]
[1749003478904,0.43534085,105700.0,105690.0,0.64236]
[1749003478905,1.19280238,105700.0,105690.0,0.64236]
[1749003479666,1.19280238,105700.0,105690.0,0.64531479]
[1749003479905,1.19280238,105700.0,105690.0,0.35352]
[1749003480139,1.24285036,105700.0,105690.0,0.35647495]
[1749003480388,1.24285036,105700.0,105690.0,0.64531495]
[1749003480389,1.40396404,105700.0,105690.0,0.64531495]
[1749003480602,1.33870466,105700.0,105690.0,0.64236]
[1749003480826,1.33870466,105700.0,105690.0,0.64631495]
[1749003481048,1.36591456,105700.0,105690.0,0.64436]
[1749003481260,1.34818481,105700.0,105690.0,0.64336]
[1749003481483,1.34818481,105700.0,105690.0,0.64236]
[1749003481713,1.37191456,105700.0,105690.0,0.35352]
[1749003481927,1.3719145,105700.0,105690.0,0.64531494]
[1749003482143,1.35418481,105700.0,105690.0,0.64531494]
[1749003482351,1.35418481,105700.0,105690.0,0.64236]
[1749003482836,0.0163,105680.0,105660.0,0.0313]
[1749003483054,0.3563,105680.0,105670.0,0.28884]
[1749003483268,0.34,105680.0,105670.0,0.32094]
[1749003483516,0.35773002,105680.0,105670.0,0.32094]
[1749003483787,0.34,105680.0,105670.0,0.32094]
[1749003484245,0.69373668,105680.0,105670.0,0.32094]
[1749003484660,0.69373668,105680.0,105670.0,0.4167943]
[1749003485316,0.69373668,105680.0,105670.0,1.0226343]
[1749003488174,0.34,105680.0,105670.0,1.0226343]
[1749003488381,0.69373668,105680.0,105670.0,1.0226343]
[1749003488587,0.028398,105690.0,105670.0,1.0226343]
[1749003488797,0.028398,105690.0,105680.0,0.1109543]
[1749003488798,0.34,105690.0,105680.0,0.1109543]
[1749003489007,0.69373668,105690.0,105680.0,0.1109543]
[1749003489218,1.1135659,105690.0,105680.0,0.10366]
[1749003489447,1.04747336,105690.0,105680.0,0.3782]
[1749003489656,1.04747336,105690.0,105670.0,0.55002]
[1749003489865,0.35373668,105680.0,105670.0,0.55002]
[1749003490071,0.35373668,105680.0,105670.0,0.92842]
[1749003490279,0.35373668,105680.0,105670.0,0.63858]
[1749003490489,0.35373668,105680.0,105670.0,0.92838]
[1749003492227,0.3714664,105680.0,105670.0,0.92838]
[1749003492455,0.35373668,105680.0,105670.0,0.92838]
[1749003492666,0.3714664,105680.0,105670.0,0.92838]
[1749003492893,0.35373668,105680.0,105670.0,0.92838]
[1749003493105,0.7114664,105680.0,105670.0,0.92838]
[1749003494382,0.72919578,105680.0,105670.0,0.92838]
[1749003494587,0.72919557,105680.0,105670.0,0.92838]
[1749003494805,0.37545886,105680.0,105670.0,0.92838]
[1749003495018,0.72919548,105680.0,105670.0,0.92838]
[1749003495226,0.72919549,105680.0,105670.0,0.93133484]
[1749003495446,0.7114664,105680.0,105670.0,0.92838]
[1749003496077,0.7114664,105680.0,105670.0,0.93133481]
[1749003496285,0.7114664,105680.0,105670.0,0.92838]
[1749003496751,0.7291951,105680.0,105670.0,0.92838]
[1749003496977,0.7114664,105680.0,105670.0,0.93133481]
[1749003497191,0.72919528,105680.0,105670.0,0.92838]
[1749003497393,0.7114664,105680.0,105670.0,0.92838]
[1749003498025,0.7114664,105680.0,105670.0,0.93133482]
[1749003498265,0.7114664,105680.0,105670.0,0.92838]
[1749003498936,0.72919531,105680.0,105670.0,0.92838]
[1749003499145,0.7114664,105680.0,105670.0,0.92838]
[1749003499418,0.7291953,105680.0,105670.0,0.93133482]
[1749003499629,0.7114664,105680.0,105670.0,0.92838]
[1749003499833,0.7114664,105680.0,105670.0,0.64153486]
[1749003500050,0.72919543,105680.0,105670.0,0.92818]
[1749003500258,0.7114664,105680.0,105670.0,0.92818]
[1749003501316,0.7114664,105680.0,105670.0,0.93113483]
[1749003501526,0.7114664,105680.0,105670.0,0.92818]
[1749003501743,0.72919543,105680.0,105670.0,0.92818]
[1749003501986,0.7114664,105680.0,105670.0,0.92818]
[1749003502211,0.72919543,105680.0,105670.0,0.92818]
[1749003502430,0.7114664,105680.0,105670.0,0.93113483]
[1749003502639,0.72919543,105680.0,105670.0,0.92818]
[1749003502852,0.7114664,105680.0,105670.0,0.92818]
[1749003503294,0.72919543,105680.0,105670.0,0.93113483]
[1749003503507,0.7114664,105680.0,105670.0,0.92818]
[1749003504148,0.72919543,105680.0,105670.0,0.92818]
[1749003504361,0.7114664,105680.0,105670.0,0.92818]
[1749003505215,0.72919535,105680.0,105670.0,0.92818]
[1749003505420,0.7114664,105680.0,105670.0,0.92818]
[1749003505928,0.72919545,105680.0,105670.0,0.92818]
[1749003506153,0.7114664,105680.0,105670.0,0.92818]
[1749003506576,0.7114664,105680.0,105670.0,0.93113483]
[1749003506784,0.7114664,105680.0,105670.0,1.0240343]
[1749003507000,0.72919537,105680.0,105670.0,1.0240343]
[1749003507243,0.7114664,105680.0,105670.0,1.02698912]
[1749003507458,0.72919538,105680.0,105670.0,1.02698913]
[1749003507665,0.7114664,105680.0,105670.0,1.02698905]
[1749003507868,0.7114664,105680.0,105670.0,1.0240343]
[1749003508491,0.7114664,105680.0,105670.0,1.02698904]
[1749003508702,0.7114664,105680.0,105670.0,1.0240343]
[1749003509135,0.7114664,105680.0,105670.0,1.02698903]
[1749003509348,0.72919501,105680.0,105670.0,1.0240343]
[1749003509554,0.7114664,105680.0,105670.0,1.0240343]
[1749003509781,0.37545846,105680.0,105670.0,1.0240343]
[1749003509995,0.72919494,105680.0,105670.0,1.02698905]
[1749003510205,0.72919478,105680.0,105670.0,1.0240343]
[1749003510422,0.7114664,105680.0,105670.0,1.0240343]
[1749003511100,0.01772972,105680.0,105670.0,1.0240343]
[1749003511319,0.03545758,105680.0,105670.0,1.0240343]
[1749003511532,0.01772972,105680.0,105670.0,1.02698875]
[1749003511753,0.01772972,105680.0,105670.0,1.0240343]
[1749003512177,0.01772972,105680.0,105670.0,1.0269887]
[1749003512406,0.01772972,105680.0,105670.0,1.0240343]
[1749003512840,0.01772972,105680.0,105670.0,1.0269887]
[1749003513264,0.01772972,105680.0,105670.0,1.0240343]
[1749003516834,0.01772972,105680.0,105670.0,1.0237143]
[1749003517964,0.01772972,105680.0,105670.0,0.7344343]
[1749003518182,0.01772972,105680.0,105670.0,1.0237143]
[1749003520842,0.3714664,105680.0,105670.0,0.6131743]
[1749003521111,0.75711293,105680.0,105670.0,0.7021343]
[1749003521363,0.7435664,105680.0,105670.0,0.9913343]
[1749003521627,0.7435664,105680.0,105670.0,0.60628]
[1749003521864,0.7435664,105680.0,105670.0,0.89552]
[1749003522098,0.7435664,105680.0,105670.0,0.89847482]
[1749003522313,0.7435664,105680.0,105670.0,0.89552]
[1749003523173,0.7435664,105680.0,105670.0,0.89548]
[1749003524263,0.7435664,105680.0,105670.0,0.89843485]
[1749003524500,0.7435664,105680.0,105670.0,0.60923485]
[1749003524745,0.7435664,105680.0,105670.0,0.8954]
[1749003525013,0.7435664,105680.0,105670.0,0.89835487]
[1749003525257,0.7435664,105680.0,105670.0,0.89835488]
[1749003525496,0.7435664,105680.0,105670.0,0.8954]
[1749003526921,0.7435664,105680.0,105670.0,0.89835488]
[1749003527151,0.7435664,105680.0,105670.0,0.8954]
[1749003527863,0.7435664,105680.0,105670.0,0.89835488]
[1749003528107,0.7435664,105680.0,105670.0,0.8954]
[1749003528848,0.7435664,105680.0,105670.0,0.89835487]
[1749003529071,0.7435664,105680.0,105670.0,0.8954]
[1749003530680,0.7435664,105680.0,105670.0,0.89835482]
[1749003530887,0.7435664,105680.0,105670.0,0.8954]
[1749003531072,0.7435664,105680.0,105670.0,0.89835484]
[1749003531336,0.7274664,105680.0,105670.0,0.8954]
[1749003532002,0.7274664,105680.0,105670.0,0.89835485]
[1749003532477,0.7274664,105680.0,105670.0,0.8954]
[1749003533177,0.7274664,105680.0,105670.0,0.89835485]
[1749003533383,0.7274664,105680.0,105670.0,0.60923485]
[1749003533599,0.7274664,105680.0,105670.0,0.8952]
[1749003533813,0.7427664,105680.0,105670.0,0.8952]
[1749003534041,0.7427664,105680.0,105670.0,0.89815489]
[1749003534255,0.7427664,105680.0,105670.0,0.89815488]
[1749003534481,0.7427664,105680.0,105670.0,0.8952]
[1749003536173,0.7427664,105680.0,105670.0,0.89815488]
[1749003536417,0.7427664,105680.0,105670.0,0.8952]
[1749003536626,0.7274664,105680.0,105670.0,0.8952]
[1749003537799,0.7274664,105680.0,105670.0,0.89815485]
[1749003538038,0.7274664,105680.0,105670.0,0.8952]
[1749003539306,0.7274664,105680.0,105670.0,0.89815485]
[1749003539548,0.7274664,105680.0,105670.0,0.8952]
[1749003540017,0.7274664,105680.0,105670.0,0.89815485]
[1749003540261,0.7274664,105680.0,105670.0,0.8952]
[1749003540741,0.7114664,105680.0,105670.0,0.8981548]
[1749003540982,0.7114664,105680.0,105670.0,0.8952]
[1749003541224,0.7114664,105680.0,105670.0,0.89815483]
[1749003541496,0.01772972,105680.0,105670.0,1.0222543]
[1749003544186,0.01772972,105680.0,105670.0,1.37599098]
[1749003544893,0.01772972,105680.0,105670.0,1.10371098]
[1749003545379,0.01772972,105680.0,105670.0,1.37703098]
[1749003546347,0.01772972,105680.0,105670.0,1.08237183]
[1749003546590,0.01772972,105680.0,105670.0,1.66229238]
[1749003546591,0.00212972,105680.0,105670.0,1.66229238]
[1749003546815,4.798e-05,105700.0,105680.0,0.35454085]
[1749003547062,4.798e-05,105700.0,105690.0,0.76897098]
[1749003547979,4.798e-05,105700.0,105690.0,1.17852151]
[1749003549056,4.798e-05,105700.0,105690.0,1.18052151]
[1749003549493,4.798e-05,105700.0,105690.0,1.18252151]
[1749003549904,4.798e-05,105700.0,105690.0,1.53706236]
[1749003550366,4.798e-05,105700.0,105690.0,1.89079904]
[1749003550586,4.798e-05,105700.0,105690.0,2.49079904]
[1749003551431,4.798e-05,105700.0,105690.0,2.48879904]
[1749003551878,4.798e-05,105700.0,105690.0,2.49279904]
[1749003552104,4.798e-05,105700.0,105690.0,2.49087904]
[1749003552514,4.798e-05,105700.0,105690.0,2.49387904]
[1749003553601,0.09184096,105750.0,105710.0,0.6727]
[1749003553829,0.07598897,105750.0,105730.0,0.38643668]
[1749003554069,0.07598897,105750.0,105740.0,0.29136401]